lending/lending_fUSD_20241113
["ID","MTS","AMOUNT","RATE_DAILY","PERIOD"]
[342118795,1731469002002,-500.0,0.00036084,120]
[342118796,1731469002077,-667.89,0.00036084,120]
[342118797,1731469002146,-500.0,0.00036084,120]
[342118798,1731469002390,-667.89,0.00036084,120]
[342118799,1731469002464,-500.0,0.00036084,120]
[342118800,1731469002531,-667.89,0.00036084,120]
[342118801,1731469002595,-500.0,0.00036084,120]
[342118802,1731469002660,-667.89,0.00036084,120]
[342118803,1731469002730,-562.91583784,0.00036084,120]
[342118804,1731469002797,-667.89,0.00036084,120]
[342118805,1731469002862,-500.0,0.00036084,120]
[342118806,1731469002932,-667.89,0.00036084,120]
[342118807,1731469003016,-500.0,0.00036084,120]
[342118808,1731469003082,-667.89,0.00036084,120]
[342118809,1731469003148,-500.0,0.00036084,120]
[342118810,1731469003213,-667.89008106,0.00036084,120]
[342118811,1731469003296,-500.0,0.00036084,120]
[342118812,1731469003364,-500.0,0.00036084,120]
[342118813,1731469003433,-500.0,0.00036084,120]
[342118814,1731469003521,-500.0,0.00036084,120]
[342118815,1731469003610,-500.0,0.00036084,120]
[342118816,1731469003684,-500.0,0.00036084,120]
[342118817,1731469003757,-560.74,0.00036084,120]
[342118818,1731469003829,-500.0,0.00036084,120]
[342118819,1731469003893,-500.0,0.00036084,120]
[342118820,1731469003955,-560.74,0.00036084,120]
[342118821,1731469004021,-500.0,0.00036084,120]
[342118822,1731469004089,-500.0,0.00036084,120]
[342118823,1731469004156,-500.0,0.00036084,120]
[342118824,1731469004220,-500.0,0.00036084,120]
[342118825,1731469004287,-560.74,0.00036084,120]
[342118826,1731469004355,-500.0,0.00036084,120]
[342118827,1731469004432,-500.0,0.00036084,120]
[342118828,1731469004508,-500.0,0.00036084,120]
[342118829,1731469004584,-500.0,0.00036084,120]
[342118830,1731469004648,-560.74,0.00036084,120]
[342118831,1731469004717,-181.42838127,0.00036084,120]
[342118832,1731469004789,-500.0,0.00036084,120]
[342118833,1731469004859,-500.0,0.00036084,120]
[342118834,1731469004931,-500.0,0.00036084,120]
[342118835,1731469005004,-560.74,0.00036084,120]
[342118836,1731469005076,-500.0,0.00036084,120]
[342118837,1731469005146,-450.51614194,0.00036084,120]
[342118838,1731469005214,-560.74,0.00036084,120]
[342118839,1731469005282,-500.0,0.00036084,120]
[342118840,1731469005347,-501.23434172,0.00036084,120]
[342118841,1731469005414,-560.74,0.00036084,120]
[342118842,1731469005479,-500.0,0.00036084,120]
[342118843,1731469005538,-560.74,0.00036084,120]
[342118844,1731469005604,-500.0,0.00036084,120]
[342118845,1731469005670,-560.74,0.00036084,120]
[342118846,1731469005732,-500.0,0.00036084,120]
[342118847,1731469005818,-1444.0,0.00036084,120]
[342118848,1731469005889,-560.74,0.00036084,120]
[342118849,1731469005959,-500.0,0.00036084,120]
[342118850,1731469006027,-1444.0,0.00036084,120]
[342118851,1731469006100,-560.74,0.00036084,120]
[342118852,1731469006167,-500.0,0.00036084,120]
[342118853,1731469006234,-2898.83,0.00036084,120]
[342118854,1731469006301,-1444.0,0.00036084,120]
[342118855,1731469006366,-560.74,0.00036084,120]
[342118856,1731469006432,-500.0,0.00036084,120]
[342118857,1731469006496,-2898.83,0.00036084,120]
[342118858,1731469006564,-1444.0,0.00036084,120]
[342118859,1731469006627,-560.74,0.00036084,120]
[342118860,1731469006695,-500.0,0.00036084,120]
[342118861,1731469006761,-500.0,0.00036084,120]
[342118862,1731469006826,-2898.83,0.00036084,120]
[342118863,1731469006892,-1444.0,0.00036084,120]
[342118864,1731469006959,-500.0,0.00036084,120]
[342118865,1731469007027,-560.74,0.00036084,120]
[342118866,1731469007096,-500.0,0.00036084,120]
[342118867,1731469007165,-1444.0,0.00036084,120]
[342118868,1731469007229,-191.91968989,0.00036084,120]
[342118869,1731469007300,-2898.83,0.00036084,120]
[342118870,1731469007371,-560.74,0.00036084,120]
[342118871,1731469007448,-500.0,0.00036084,120]
[342118872,1731469007520,-1444.0,0.00036084,120]
[342118873,1731469007594,-2898.83,0.00036084,120]
[342118874,1731469007666,-560.74,0.00036084,120]
[342118875,1731469007736,-569.75225248,0.00036084,120]
[342118876,1731469007808,-389.92651408,0.00036084,120]
[342118877,1731469020753,-1696629.42918297,0.000237,120]
[342118878,1731469020830,-500.0,0.00025099,120]
[342118879,1731469020914,-200.0,0.00025099,120]
[342118880,1731469020988,-526.694735,0.00025599,120]
[342118881,1731469021055,-160.607771,0.0002646,60]
[342118882,1731469021123,-500.0,0.00026599,120]
[342118883,1731469021189,-200.0,0.00026599,120]
[342118884,1731469021257,-543.9,0.00027,60]
[342118885,1731469031089,150.0,0.00011764,2]
[342118886,1731469031112,13.05,0.00011764,2]
[342118887,1731469034413,136.95,0.00011725,2]
[342118888,1731469034448,4411.73,0.00011725,2]
[342118889,1731469037713,1643.42211588,0.00012276,2]
[342118890,1731469040145,162.62348464,0.0001228,2]
[342118891,1731469040857,250.0,0.00011661,2]
[342118892,1731469048739,1000.0,0.00011583,2]
[342118893,1731469049109,202.0,0.00011,2]
[342118894,1731469058872,181.0,6.984e-05,2]
[342118895,1731469068819,2183.446,0.00012236,2]
[342118896,1731469078666,300.0,0.00012275,2]
[342118897,1731469094130,150.0,7.675e-05,2]
[342118898,1731469119124,150.0,0.0001195,2]
[342118899,1731469119146,100.0,0.0001195,2]
[342118900,1731469120157,50.0,0.0001195,2]
[342118901,1731469120179,150.0,0.0001195,2]
[342118902,1731469137123,133.90756496,0.0001218,2]
[342118903,1731469137147,152.43349539,0.0001218,2]
[342118904,1731469137172,213.65893965,0.0001218,2]
[342118905,1731469157806,2172.12,0.00012225,2]
[342118906,1731469166780,250.0,0.00027,60]
[342118907,1731469184018,1500.0,0.00012225,2]
[342118908,1731469194466,160.0,0.00012073,2]
[342118909,1731469196328,162.62348464,0.00012235,2]
[342118910,1731469197700,161.76,0.00012073,2]
[342118911,1731469197911,161.76,0.0001208,2]
[342118912,1731469198126,161.76,0.00012088,2]
[342118913,1731469198355,161.76,0.00012095,2]
[342118914,1731469198555,161.76,0.00012103,2]
[342118915,1731469198861,161.76,0.0001211,2]
[342118916,1731469199007,161.76,0.00012118,2]
[342118917,1731469199205,161.76,0.00012125,2]
[342118918,1731469199423,161.76,0.00012133,2]
[342118919,1731469220779,150.0,0.00012,2]
[342118920,1731469220802,105.0,0.00012,2]
[342118921,1731469244980,45.0,0.00012095,2]
[342118922,1731469245003,150.0,0.00012095,2]
[342118923,1731469245030,55.0,0.00012095,2]
[342118924,1731469253549,95.0,0.00012,2]
[342118925,1731469253571,150.0,0.00012,2]
[342118926,1731469253593,150.0,0.00012,2]
[342118927,1731469253614,150.0,0.00012,2]
[342118928,1731469253635,178.39,0.00012,2]
[342118929,1731469253658,726.61,0.00012,2]
[342118931,1731469263545,162.79,0.00012096,2]
[342118934,1731469343895,166.41,0.00012157,2]
[342118935,1731469354229,346.23800257,0.0001228,2]
[342118936,1731469369272,163.17,9.718e-05,2]
[342118937,1731469375953,417.53397268,0.00012307,2]
[342118938,1731469396744,613.02,0.00012303,2]
[342118939,1731469396964,500.0,0.00025099,120]
[342118940,1731469397171,503.722265,0.00026599,120]
[342118941,1731469401328,2000.0,0.00025408,120]
[342118942,1731469401688,2000.0,0.00026313,120]
[342118943,1731469411753,441.11,0.00012259,2]
[342118944,1731469413398,208.461437,0.00025099,120]
[342118945,1731469437738,162.62348464,0.00012235,2]
[342118946,1731469440713,567.75,0.00012215,2]
[342118948,1731469482404,156.87,9.846e-05,2]
[342118949,1731469482651,150.0,0.00012259,2]
[342118950,1731469484026,1479.07990431,0.00012235,2]
[342118951,1731469484973,226.62,8.219e-05,2]
[342118952,1731469485163,226.62,0.00011644,2]
[342118953,1731469494632,230.82533506,0.0001228,2]
[342118954,1731469495440,1338.42,0.00012294,2]
[342118955,1731469505746,150.0,0.00012301,2]
[342118956,1731469561110,788.93,0.00010231,2]
[342118957,1731469633475,250.0,0.00012191,2]
[342118958,1731469647325,1000.0,0.00012178,2]
[342118959,1731469668352,162.62348464,0.00012235,2]
[342118961,1731469729356,1303.23,0.00012042,2]
[342118970,1731469784432,200.0,0.00012032,2]
[342118989,1731469832133,-463.95167149,0.00012333,2]
[342118990,1731469832142,-150.0,0.00012333,2]
[342118991,1731469832155,-745.33814552,0.00012334,2]
[342118992,1731469832164,-6049.45179077,0.00012334,2]
[342118993,1731469832175,-775.93235417,0.00012334,2]
[342118994,1731469832186,-2127.12108198,0.00012334,2]
[342118995,1731469832197,-11047.49477308,0.00012334,2]
[342118996,1731469832206,-3608.65915336,0.00012334,2]
[342118998,1731469832777,-16391.34084664,0.00012334,2]
[342118999,1731469832786,-20000.0,0.00012334,2]
[342119000,1731469832795,-20000.0,0.00012334,2]
[342119001,1731469832805,-20000.0,0.00012334,2]
[342119002,1731469832814,-20000.0,0.00012334,2]
[342119003,1731469832823,-20000.0,0.00012334,2]
[342119004,1731469832832,-20000.0,0.00012334,2]
[342119005,1731469832841,-20000.0,0.00012334,2]
[342119006,1731469832851,-20000.0,0.00012334,2]
[342119007,1731469832860,-20000.0,0.00012334,2]
[342119008,1731469832869,-20000.0,0.00012334,2]
[342119009,1731469832878,-20000.0,0.00012334,2]
[342119010,1731469832887,-20000.0,0.00012334,2]
[342119011,1731469832896,-20000.0,0.00012334,2]
[342119012,1731469832908,-18577.88632406,0.00012334,2]
[342119013,1731469837392,500.0,0.00012089,2]
[342119016,1731469838181,-1422.11367594,0.00012334,2]
[342119017,1731469838191,-20000.0,0.00012334,2]
[342119018,1731469838200,-20000.0,0.00012334,2]
[342119019,1731469838210,-20000.0,0.00012334,2]
[342119020,1731469838219,-20000.0,0.00012334,2]
[342119021,1731469838228,-20000.0,0.00012334,2]
[342119022,1731469838237,-2014.67026769,0.00012334,2]
[342119023,1731469838247,-394.67131037,0.00012334,2]
[342119024,1731469838256,-31553.20608655,0.00012335,2]
[342119025,1731469838266,-500.0,0.00012373,2]
[342119026,1731469838275,-300.0,0.00012373,2]
[342119027,1731469838285,-66080.15911741,0.0001238,2]
[342119028,1731469838294,-174.99805561,0.0001238,2]
[342119029,1731469838304,-153.8835567,0.0001238,2]
[342119030,1731469838313,-227562.76239785,0.0001248,2]
[342119031,1731469838323,-788.93,0.00012495,2]
[342119032,1731469838332,-1479.07990425,0.00012531,2]
[342119033,1731469838342,-1840.45,0.00012531,2]
[342119034,1731469838351,-4949.76,0.00012531,2]
[342119035,1731469838360,-210.18,0.00012568,2]
[342119036,1731469838370,-443.46,0.00012568,2]
[342119037,1731469838379,-4242.15,0.00012568,2]
[342119038,1731469838390,-1251.78,0.00012568,2]
[342119039,1731469838399,-167.31,0.00012611,2]
[342119040,1731469838411,-1303.23,0.00012644,2]
[342119041,1731469838420,-415.8059139,0.00012669,2]
[342119042,1731469838430,-153.88355669,0.00012702,2]
[342119044,1731469838439,-544.90795498,0.00012756,2]
[342119045,1731469838447,-174.77,0.00012781,2]
[342119046,1731469838456,-1479.07990425,0.00012827,2]
[342119047,1731469838465,-5262.91319665,0.000129,2]
[342119048,1731469838475,-192.00801787,0.000129,2]
[342119049,1731469838483,-3240.6093,0.000129,2]
[342119050,1731469838492,-166.41,0.00012917,2]
[342119051,1731469838502,-305.3157249,0.00012921,2]
[342119052,1731469838511,-500.0,0.00012999,2]
[342119053,1731469838521,-500.0,0.00012999,2]
[342119054,1731469838530,-500.0,0.00012999,2]
[342119055,1731469838539,-500.0,0.00012999,2]
[342119056,1731469838548,-500.0,0.00012999,2]
[342119057,1731469838557,-500.0,0.00012999,2]
[342119058,1731469838566,-500.0,0.00012999,2]
[342119059,1731469838576,-500.0,0.00012999,2]
[342119060,1731469838585,-500.0,0.00012999,2]
[342119061,1731469838595,-500.0,0.00012999,2]
[342119062,1731469838608,-500.0,0.00012999,2]
[342119063,1731469838617,-500.0,0.00012999,2]
[342119064,1731469838627,-157.26519022,0.00012999,2]
[342119065,1731469838636,-450.0,0.00012999,2]
[342119066,1731469838649,-1375.0,0.00012999,2]
[342119067,1731469838667,-1421240.63280929,0.00013,2]
[342119068,1731469838679,-250.0,0.00013,2]
[342119069,1731469838688,-378.6,0.00013,2]
[342119070,1731469838698,-153.88355669,0.00013023,2]
[342119071,1731469838707,-1479.07990425,0.00013123,2]
[342119072,1731469838717,-1303.23,0.00013246,2]
[342119073,1731469838726,-50000.0,0.000133,2]
[342119074,1731469838735,-167.31,0.00013304,2]
[342119075,1731469838744,-640.0,0.00013398,2]
[342119076,1731469838753,-255.0,0.00013418,2]
[342119077,1731469838762,-1479.07990425,0.00013419,2]
[342119078,1731469838771,-153.43,0.00013496,2]
[342119079,1731469838781,-150.0,0.00013554,2]
[342119080,1731469838790,-323.5,0.00013556,2]
[342119081,1731469838799,-166.41,0.00013677,2]
[342119082,1731469838809,-819.8,0.00013698,2]
[342119083,1731469838818,-500.0,0.00013699,2]
[342119084,1731469838828,-171.40525016,0.00013699,2]
[342119085,1731469838837,-378.65234268,0.00013699,2]
[342119086,1731469838847,-500.0,0.00013699,2]
[342119087,1731469838856,-500.47857228,0.00013699,2]
[342119088,1731469838866,-500.0,0.00013699,2]
[342119089,1731469838875,-500.0,0.00013699,2]
[342119090,1731469838884,-500.0,0.00013699,2]
[342119091,1731469838893,-1000.0,0.000137,2]
[342119092,1731469838903,-1479.07990425,0.00013716,2]
[342119093,1731469838917,-400.0,0.00013799,2]
[342119094,1731469838926,-5432.35824052,0.000138,3]
[342119095,1731469838936,-819.8,0.00013835,2]
[342119096,1731469838945,-1303.23,0.00013848,2]
[342119097,1731469838955,-160.0,0.00013861,2]
[342119098,1731469838964,-400.0,0.00013972,2]
[342119099,1731469838973,-819.8,0.00013972,2]
[342119100,1731469838982,-500.0,0.00013973,2]
[342119101,1731469838992,-221.86847883,0.00013973,2]
[342119102,1731469839001,-167.31,0.00013998,2]
[342119103,1731469839011,-400.0,0.00013999,2]
[342119104,1731469839020,-459571.3467653,0.00014,2]
[342119105,1731469839030,-151.0,0.00014,2]
[342119106,1731469839039,-151.454978,0.00014,2]
[342119107,1731469839049,-1500.0,0.00014,2]
[342119108,1731469839058,-1479.07990425,0.00014012,2]
[342119109,1731469839067,-160.0,0.00014085,2]
[342119110,1731469839076,-819.8,0.00014109,2]
[342119111,1731469839085,-158.203,0.0001418,2]
[342119112,1731469839094,-400.0,0.00014246,2]
[342119113,1731469839103,-819.8,0.00014246,2]
[342119114,1731469839112,-500.55273245,0.00014247,2]
[342119115,1731469839122,-1000.0,0.00014247,2]
[342119116,1731469839131,-1000.0,0.00014247,2]
[342119117,1731469839141,-1000.0,0.00014247,2]
[342119118,1731469839150,-1000.0,0.00014247,2]
[342119119,1731469839163,-1479.07990425,0.00014308,2]
[342119120,1731469839172,-819.8,0.00014383,2]
[342119121,1731469839182,-166.41,0.00014437,2]
[342119122,1731469839191,-1303.23,0.0001445,2]
[342119123,1731469839200,-165.93,0.00014458,2]
[342119124,1731469839211,-455.21854688,0.00014499,2]
[342119125,1731469839221,-1702.62395462,0.000145,3]
[342119126,1731469839230,-819.8,0.0001452,2]
[342119127,1731469839239,-182.80029346,0.00014521,2]
[342119128,1731469839249,-1255.0,0.00014546,2]
[342119129,1731469839259,-455.115,0.00014546,2]
[342119130,1731469839268,-150.234,0.00014546,2]
[342119131,1731469839277,-1992.0,0.00014546,2]
[342119132,1731469839287,-628.0,0.00014546,2]
[342119133,1731469839297,-561.832,0.00014546,2]
[342119134,1731469839309,-1924.0,0.00014546,2]
[342119135,1731469839318,-1259.0,0.00014546,2]
[342119136,1731469839328,-814.0,0.00014546,2]
[342119137,1731469839337,-3745.0,0.00014546,2]
[342119138,1731469839347,-922.0,0.00014546,2]
[342119139,1731469839356,-3488.0,0.00014546,2]
[342119140,1731469839365,-1163.507,0.00014546,2]
[342119141,1731469839374,-5955.551,0.00014546,2]
[342119142,1731469839384,-150.0,0.00014546,2]
[342119143,1731469839394,-250.0,0.00014546,2]
[342119144,1731469839403,-1096.379,0.00014546,2]
[342119145,1731469839414,-163.17,0.00014577,2]
[342119146,1731469839424,-433.0,0.00014602,2]
[342119147,1731469839433,-1479.07990425,0.00014604,2]
[342119148,1731469839443,-819.8,0.00014657,2]
[342119149,1731469839453,-167.31,0.00014692,2]
[342119150,1731469839463,-1010.0,0.000147,2]
[342119151,1731469839473,-150.0,0.0001472,2]
[342119152,1731469839482,-150.0,0.00014731,2]
[342119153,1731469839494,-150.0,0.00014732,2]
[342119154,1731469839503,-150.0,0.00014737,2]
[342119155,1731469839512,-150.0,0.00014738,2]
[342119156,1731469839521,-150.0,0.0001474,2]
[342119157,1731469839531,-150.0,0.00014741,2]
[342119158,1731469839542,-150.0,0.00014743,2]
[342119159,1731469839555,-150.0,0.00014754,2]
[342119160,1731469839567,-150.0,0.00014758,2]
[342119161,1731469839577,-150.0,0.00014759,2]
[342119162,1731469839586,-788.93,0.00014759,2]
[342119163,1731469839596,-150.0,0.00014763,2]
[342119164,1731469839610,-150.0,0.00014765,2]
[342119165,1731469839620,-150.0,0.00014768,2]
[342119166,1731469839629,-1500.0,0.00014768,2]
[342119167,1731469839644,-156.87,0.0001477,2]
[342119168,1731469839657,-150.0,0.00014771,2]
[342119169,1731469839666,-150.67143563,0.00014772,2]
[342119170,1731469839678,-150.0,0.00014773,2]
[342119171,1731469839688,-150.0,0.00014773,2]
[342119172,1731469839698,-150.0,0.00014775,2]
[342119173,1731469839710,-150.0,0.00014778,2]
[342119174,1731469839720,-150.0,0.00014779,2]
[342119175,1731469839732,-150.0,0.0001478,2]
[342119176,1731469839742,-150.0,0.0001478,2]
[342119177,1731469839754,-150.0,0.00014783,2]
[342119178,1731469839764,-150.0,0.00014785,2]
[342119179,1731469839774,-150.0,0.00014785,2]
[342119180,1731469839784,-150.0,0.00014786,2]
[342119181,1731469839793,-150.0,0.00014788,2]
[342119183,1731469839803,-150.0,0.0001479,2]
[342119184,1731469839815,-150.0,0.00014791,2]
[342119185,1731469839827,-819.8,0.00014794,2]
[342119186,1731469839838,-150.0,0.00014796,2]
[342119187,1731469839847,-526.18722327,0.000148,2]
[342119188,1731469839857,-150.0,0.00014801,2]
[342119189,1731469839867,-1500.0,0.00014801,2]
[342119190,1731469839876,-150.0,0.00014807,2]
[342119191,1731469839886,-150.0,0.00014809,2]
[342119192,1731469839895,-1136.02825326,0.00014818,2]
[342119193,1731469839905,-150.0,0.00014818,2]
[342119194,1731469839914,-150.0,0.00014823,2]
[342119195,1731469839923,-150.0,0.00014824,2]
[342119196,1731469839932,-150.0,0.00014824,2]
[342119197,1731469839943,-150.0,0.00014826,2]
[342119198,1731469839953,-150.0,0.0001483,2]
[342119199,1731469839964,-150.0,0.00014831,2]
[342119200,1731469839973,-150.0,0.00014832,2]
[342119201,1731469839982,-150.0,0.00014841,2]
[342119202,1731469839992,-150.0,0.00014844,2]
[342119203,1731469840001,-150.0,0.0001485,2]
[342119204,1731469840010,-150.0,0.0001485,2]
[342119205,1731469840307,-150.0,0.0001485,2]
[342119206,1731469840317,-150.0,0.00014851,2]
[342119207,1731469840326,-150.0,0.00014853,2]
[342119208,1731469840335,-150.0,0.00014857,2]
[342119209,1731469840344,-388.62791657,0.00014857,2]
[342119210,1731469840352,-200.0,0.0001486,2]
[342119211,1731469840361,-150.0,0.00014862,2]
[342119212,1731469840370,-150.0,0.00014863,2]
[342119213,1731469840379,-150.0,0.00014864,2]
[342119214,1731469840388,-150.0,0.00014869,2]
[342119215,1731469840397,-150.0,0.0001487,2]
[342119216,1731469840406,-150.0,0.00014873,2]
[342119217,1731469840415,-150.0,0.00014876,2]
[342119218,1731469840424,-150.0,0.00014878,2]
[342119219,1731469840434,-150.0,0.00014879,2]
[342119220,1731469840443,-150.0,0.0001488,2]
[342119221,1731469840452,-216.30964063,0.0001488,2]
[342119222,1731469840461,-640.0,0.00014887,2]
[342119223,1731469840471,-834.364,0.0001489,2]
[342119224,1731469840480,-174.662,0.0001489,2]
[342119225,1731469840490,-150.0,0.0001489,2]
[342119226,1731469840499,-150.0,0.00014893,2]
[342119227,1731469840510,-150.0,0.00014895,2]
[342119228,1731469840520,-150.0,0.00014896,2]
[342119229,1731469840529,-150.0,0.00014898,2]
[342119230,1731469840540,-1004.5475,0.00014899,2]
[342119231,1731469840550,-76089.25103874,0.000149,2]
[342119232,1731469840561,-250000.0,0.000149,2]
[342119233,1731469840571,-150.17040942,0.000149,2]
[342119234,1731469840582,-1479.07990425,0.000149,2]
[342119235,1731469840591,-216.30964063,0.000149,2]
[342119236,1731469840604,-150.0,0.00014901,2]
[342119237,1731469840613,-150.0,0.00014901,2]
[342119238,1731469840623,-150.0,0.00014902,2]
[342119239,1731469840632,-150.0,0.00014902,2]
[342119240,1731469840644,-1500.0,0.00014903,2]
[342119241,1731469840654,-150.0,0.00014903,2]
[342119242,1731469840664,-150.0,0.00014904,2]
[342119243,1731469840673,-150.0,0.00014908,2]
[342119244,1731469840683,-150.0,0.00014911,2]
[342119245,1731469840692,-150.0,0.00014913,2]
[342119246,1731469840702,-150.0,0.00014916,2]
[342119247,1731469840712,-150.0,0.00014921,2]
[342119248,1731469840722,-150.0,0.00014928,2]
[342119249,1731469840731,-150.0,0.0001493,2]
[342119250,1731469840741,-819.8,0.00014931,2]
[342119251,1731469840750,-1500.0,0.00014932,2]
[342119252,1731469840759,-150.0,0.00014937,2]
[342119253,1731469840769,-150.0,0.00014948,2]
[342119254,1731469840778,-150.0,0.00014949,2]
[342119255,1731469840787,-150.0,0.00014952,2]
[342119256,1731469840797,-150.0,0.00014956,2]
[342119257,1731469840806,-150.0,0.00014959,2]
[342119258,1731469840816,-150.0,0.00014961,2]
[342119259,1731469840824,-150.0,0.00014964,2]
[342119260,1731469840834,-150.0,0.00014965,2]
[342119261,1731469840843,-150.0,0.00014965,2]
[342119262,1731469840852,-1500.0,0.00014966,2]
[342119263,1731469840861,-150.0,0.00014967,2]
[342119264,1731469840870,-150.0,0.00014971,2]
[342119265,1731469840879,-150.0,0.00014972,2]
[342119266,1731469840889,-150.0,0.00014973,2]
[342119267,1731469840898,-3691.60267559,0.00014979,2]
[342119268,1731469840913,-150.0,0.00014979,2]
[342119269,1731469840924,-479220.75227597,0.0001498,2]
[342119270,1731469840935,-200.0,0.0001498,2]
[342119271,1731469840944,-151.0,0.0001498,2]
[342119272,1731469840953,-154.572499,0.0001498,2]
[342119273,1731469840963,-152.135841,0.0001498,2]
[342119274,1731469840972,-332.172306,0.0001498,2]
[342119275,1731469840981,-332.172306,0.0001498,2]
[342119276,1731469840991,-151.0,0.0001498,2]
[342119277,1731469841000,-153.360663,0.0001498,2]
[342119278,1731469841009,-151.0,0.0001498,2]
[342119279,1731469841019,-2013.00877,0.0001498,2]
[342119280,1731469841028,-2013.00877,0.0001498,2]
[342119281,1731469841037,-340.218974,0.0001498,2]
[342119282,1731469841046,-340.218974,0.0001498,2]
[342119283,1731469841055,-151.465287,0.0001498,2]
[342119284,1731469841064,-153.114194,0.0001498,2]
[342119285,1731469841073,-154.223471,0.0001498,2]
[342119286,1731469841082,-151.745771,0.0001498,2]
[342119287,1731469841091,-151.941061,0.0001498,2]
[342119288,1731469841100,-150.0,0.00014981,2]
[342119289,1731469841110,-150.0,0.00014982,2]
[342119290,1731469841119,-150.0,0.00014982,2]
[342119291,1731469841128,-1245.77,0.00014986,2]
[342119292,1731469841137,-5820.0,0.00014986,2]
[342119293,1731469841147,-369.0,0.00014986,2]
[342119294,1731469841159,-150.0,0.00014995,2]
[342119295,1731469841169,-766419.58351382,0.00015,2]
[342119296,1731469841178,-3898813.0322623,0.00015,2]
[342119297,1731469841193,-2037.24135,0.00015,2]
[342119298,1731469842077,-630.51230004,0.00015,2]
[342119299,1731469842201,-1663.49293674,0.00015,2]
[342119300,1731469842212,-1422.61481643,0.00015,2]
[342119301,1731469842223,-675.0,0.00015,2]
[342119314,1731469844345,-150.0,0.00012877,2]
[342119315,1731469844354,-179.28408963,0.00015,2]
[342119316,1731469844365,-3053.40326511,0.00015,2]
[342119317,1731469844377,-4663.47943404,0.00015,2]
[342119318,1731469844386,-25491.93130772,0.00015,2]
[342119319,1731469844397,-2650.79415516,0.00015,2]
[342119320,1731469844413,-8418.58369711,0.00015,2]
[342119321,1731469844490,-31663.32150775,0.00015,2]
[342119326,1731469846325,-344.7,0.00015,2]
[342119327,1731469846337,-21587.42058652,0.00015,2]
[342119328,1731469846354,-274.21150878,0.00015,2]
[342119329,1731469846366,-22745.09079726,0.00015,2]
[342119330,1731469846378,-6636.98842568,0.00015,2]
[342119332,1731469846508,-200.0,0.00014551,2]
[342119333,1731469846518,-2042.43797134,0.00015,2]
[342119334,1731469846530,-335.164995,0.00015,2]
[342119336,1731470207140,584.299391,0.00027,60]
[342119337,1731470287777,150.0,8.219e-05,2]
[342119338,1731470287802,19.96,8.219e-05,2]
[342119339,1731470356068,2000.0,0.00027,60]
[342119340,1731470375356,2000.0,0.00027,60]
[342119341,1731470387118,2000.0,0.00027,60]
[342119342,1731470396060,2000.0,0.00027,60]
[342119343,1731470409126,2000.0,0.00027,60]
[342119344,1731470431355,685.55,0.00011688,2]
[342119345,1731470595733,500.0,0.00025099,120]
[342119346,1731470599782,2000.0,0.00025408,120]
[342119347,1731470600098,2000.0,0.00026313,120]
[342119348,1731470683144,-169.96,0.00012785,2]